bitfinex-derivatives/quotes_SOLF0:USTF0_20250613
["timestamp","ask_amount","ask_price","bid_price","bid_amount"]
[1749798954890,0.04412919,144.47,144.46,6.9185]
[1749798955087,0.04412919,144.47,144.46,50.36489113]
[1749798955280,0.04412919,144.47,144.46,45.3385]
[1749798957388,0.04412919,144.47,144.46,53.95442119]
[1749798959293,2.919e-05,144.47,144.46,53.95442119]
[1749798966796,2.919e-05,144.47,144.46,45.3385]
[1749798967706,2.919e-05,144.47,144.46,38.42]
[1749798968302,2.919e-05,144.47,144.46,45.3386]
[1749798970095,2.919e-05,144.47,144.46,38.42]
[1749798970501,2.919e-05,144.47,144.44,0.05000302]
[1749798971198,2.919e-05,144.47,144.46,6.9186]
[1749798972007,2.919e-05,144.47,144.45,6.9188]
[1749798972201,2.919e-05,144.47,144.44,0.05000302]
[1749798972598,2.919e-05,144.47,144.46,6.9186]
[1749798977207,2.919e-05,144.47,144.46,11.94235294]
[1749798977509,9.2023,144.53,144.46,5.02375294]
[1749798977810,2.2868,144.53,144.48,5.02375294]
[1749798978003,2.2868,144.53,144.5,6.9166]
[1749798978203,2.2868,144.53,144.48,5.02375294]
[1749798978403,0.04761429,144.52,144.51,6.9159]
[1749798978599,0.04761429,144.52,144.49,0.0457427]
[1749798979014,0.04761429,144.52,144.51,6.9162]
[1749798980811,0.04761429,144.52,144.49,0.0457427]
[1749798981311,0.04761429,144.52,144.5,6.9163]
[1749798982211,6.96331429,144.52,144.5,6.9163]
[1749798982416,0.04761429,144.52,144.49,0.0457427]
[1749798983514,5.89169714,144.51,144.49,0.0457427]
[1749798983706,0.04761429,144.52,144.49,0.0457427]
[1749798983908,5.8917781,144.51,144.49,0.0457427]
[1749798984211,0.04761429,144.52,144.49,0.0457427]
[1749798984412,5.89487295,144.51,144.49,0.0457427]
[1749798984605,0.04761429,144.52,144.49,0.0457427]
[1749798984810,6.9167,144.5,144.49,0.0457427]
[1749798985911,5.90979893,144.5,144.49,0.0457427]
[1749798986212,6.9175,144.49,144.44,38.3]
[1749798986411,8.71018648,144.53,144.44,38.3]
[1749798986604,5.02804463,144.5,144.44,38.3]
[1749798986809,5.9107269,144.49,144.46,6.9181]
[1749798987006,11.94494463,144.5,144.44,38.3]
[1749798987211,0.04653116,144.48,144.46,0.05147552]
[1749798987609,0.04653116,144.48,144.47,6.9178]
[1749798988214,0.04653116,144.48,144.46,0.05147552]
[1749798989212,0.04653116,144.48,144.47,6.9181]
[1749798995723,10.97106024,144.48,144.46,0.05147552]
[1749798996021,10.48442026,144.47,144.41,38.3]
[1749798996218,10.48442026,144.47,144.45,6.9189]
[1749798996219,11.5065,144.47,144.45,6.9189]
[1749798996622,11.5065,144.47,144.41,43.32830882]
[1749798996623,5.89785872,144.46,144.44,6.9193]
[1749798996824,11.5065,144.47,144.44,6.9193]
[1749798997122,0.05193886,144.46,144.44,6.96525935]
[1749798997722,0.05193886,144.46,144.45,6.919]
[1749798998724,6.97053886,144.46,144.44,6.96525935]
[1749798998925,0.05193886,144.46,144.44,0.04595935]
[1749798999426,6.97073886,144.46,144.44,6.96515935]
[1749798999615,6.97073886,144.46,144.44,0.04595935]
[1749799000117,6.919,144.45,144.44,0.04595935]
[1749799000623,6.9196,144.44,144.41,38.3]
[1749799001227,6.92,144.43,144.41,45.2207]
[1749799001730,6.9692832,144.43,144.41,45.26451115]
[1749799001921,0.0492832,144.43,144.41,45.26451115]
[1749799002726,6.9692832,144.43,144.41,45.26451115]
[1749799004431,0.0492832,144.43,144.42,6.9205]
[1749799007432,0.00432336,144.43,144.42,11.94961212]
[1749799007633,9.3037,144.49,144.46,6.9185]
[1749799008018,9.3037,144.49,144.41,38.3]
[1749799008019,6.9179,144.48,144.41,38.3]
[1749799008223,6.9179,144.48,144.45,6.9188]
[1749799008519,6.9184,144.47,144.42,5.02861965]
[1749799008827,0.05134139,144.46,144.43,0.044602]
[1749799009131,6.9194,144.45,144.43,0.044602]
[1749799010233,6.9194,144.45,144.43,6.964302]
[1749799011737,0.05134139,144.46,144.43,0.044602]
[1749799012343,6.9192,144.45,144.43,0.044602]
[1749799014838,0.05134139,144.46,144.43,6.964602]
[1749799015542,6.9193,144.45,144.43,6.964602]
[1749799015741,6.9193,144.45,144.43,0.044602]
[1749799016842,6.9193,144.45,144.43,6.964502]
[1749799018945,0.05134139,144.46,144.43,0.044602]
[1749799019640,0.05134139,144.46,144.45,6.919]
[1749799021243,0.05134139,144.46,144.45,45.099]
[1749799021445,9.2768,144.51,144.49,6.9169]
[1749799021645,38.18,144.53,144.47,5.03014338]
[1749799021846,5.87482429,144.52,144.47,5.03014338]
[1749799022047,6.9155,144.53,144.5,6.9164]
[1749799022250,5.87499824,144.52,144.48,5.03014338]
[1749799022552,10.9528992,144.51,144.49,0.0458048]
[1749799022740,6.9166,144.5,144.49,0.0458048]
[1749799023149,5.87673476,144.5,144.49,0.0458048]
[1749799023350,2.3495421,144.51,144.49,0.0458048]
[1749799023951,9.2659421,144.51,144.49,6.9625048]
[1749799025350,0.0499421,144.51,144.5,6.9166]
[1749799025543,5.95318005,144.51,144.49,0.0458048]
[1749799025748,0.0499421,144.51,144.49,0.0458048]
[1749799026455,6.9664421,144.51,144.49,0.0458048]
[1749799027155,12.82287236,144.5,144.49,0.0458048]
[1749799027456,5.90627236,144.5,144.49,0.0458048]
[1749799027755,0.0499421,144.51,144.49,0.0458048]
[1749799028056,6.9661421,144.51,144.49,6.9627048]
[1749799028252,5.90673389,144.5,144.49,6.9627048]
[1749799028548,6.9661421,144.51,144.49,6.9627048]
[1749799028949,0.0499421,144.51,144.5,6.9166]
[1749799029156,5.95616422,144.51,144.5,6.9166]
[1749799029455,0.0499421,144.51,144.5,6.9166]
[1749799029657,0.0499421,144.51,144.49,6.9627048]
[1749799030155,6.9661421,144.51,144.49,6.9627048]
[1749799030749,6.9166,144.5,144.49,0.0458048]
[1749799031452,17.84890382,144.5,144.49,0.0458048]
[1749799032457,6.9179,144.48,144.45,38.18]
[1749799032648,6.9179,144.48,144.45,45.0987]
[1749799033160,6.9179,144.48,144.46,6.9185]
[1749799033455,0.04825946,144.48,144.46,0.05332595]
[1749799034562,0.04825946,144.48,144.47,6.918]
[1749799035462,0.04825946,144.48,144.47,11.94347996]
[1749799040463,0.04825946,144.48,144.47,6.918]
[1749799041565,0.04825946,144.48,144.46,0.05332595]
[1749799042066,0.04825946,144.48,144.42,38.04]
[1749799042067,6.9198,144.44,144.42,38.04]
[1749799042265,5.02600668,144.45,144.39,38.04]
[1749799042661,6.9204,144.43,144.4,6.9212]
[1749799042857,6.96966874,144.43,144.4,6.96567452]
[1749799043274,6.9205,144.42,144.4,6.96567452]
[1749799043864,6.96946874,144.43,144.41,6.9209]
[1749799045075,0.04926874,144.43,144.4,0.04447452]
[1749799045753,6.9208,144.42,144.4,0.04447452]
[1749799046157,6.96946874,144.43,144.4,0.04447452]
[1749799046362,6.96946874,144.43,144.4,6.96557452]
[1749799046868,6.9205,144.42,144.4,0.04447452]
[1749799047557,6.96946874,144.43,144.4,6.96577452]
[1749799047870,0.04926874,144.43,144.4,6.96577452]
[1749799048070,0.04926874,144.43,144.4,0.04447452]
[1749799048269,6.9208,144.42,144.4,0.04447452]
[1749799048569,0.04926874,144.43,144.4,0.04447452]
[1749799048964,0.04926874,144.43,144.41,5.02600668]
[1749799049162,0.04926874,144.43,144.41,10.05201336]
[1749799049363,6.9174,144.49,144.46,6.9181]
[1749799049569,5.87407622,144.48,144.45,5.02600668]
[1749799049767,7.0129,144.52,144.45,5.02600668]
[1749799050069,5.87374014,144.51,144.45,5.02600668]
[1749799050369,0.0530595,144.49,144.47,0.04688123]
[1749799050570,6.9703595,144.49,144.47,0.04688123]
[1749799050870,0.0530595,144.49,144.47,0.04688123]
[1749799051567,6.9176,144.48,144.47,0.04688123]
[1749799053567,6.9703595,144.49,144.47,0.04688123]
[1749799053769,5.90227128,144.48,144.47,0.04688123]
[1749799054668,0.0530595,144.49,144.47,43.11288791]
[1749799054872,0.0530595,144.49,144.47,43.11118288]
[1749799055667,0.0530595,144.49,144.48,6.9176]
[1749799057677,0.0530595,144.49,144.47,38.08688123]
[1749799058769,0.0530595,144.49,144.47,0.04688123]
[1749799059077,5.91691685,144.48,144.47,0.04688123]
[1749799060671,6.9184,144.47,144.44,44.9592]
[1749799061073,6.9177,144.48,144.45,6.9187]
[1749799061278,5.91771161,144.47,144.45,6.9187]
[1749799061577,5.07907975,144.49,144.45,6.97029885]
[1749799061777,6.9181,144.47,144.45,0.05159885]
[1749799062166,5.07907975,144.49,144.45,0.05159885]
[1749799062467,5.02602025,144.47,144.41,6.9205]
[1749799062672,5.91889742,144.46,144.41,6.9205]
[1749799062877,6.9201,144.43,144.4,44.8214]
[1749799063078,2.1694,144.46,144.4,44.8214]
[1749799063268,5.91927831,144.45,144.4,44.8214]
[1749799063473,6.9202,144.43,144.41,0.0513628]
[1749799064379,6.9202,144.43,144.41,6.9721628]
[1749799064577,6.96789595,144.44,144.41,6.9721628]
[1749799065083,0.04829595,144.44,144.41,6.9721628]
[1749799066680,6.92,144.43,144.41,0.0513628]
[1749799067277,0.04829595,144.44,144.41,5.07738305]
[1749799067979,0.04829595,144.44,144.41,0.0513628]
[1749799068382,6.9204,144.42,144.41,0.0513628]
[1749799068580,0.04829595,144.44,144.41,0.0513628]
[1749799068790,5.94004676,144.44,144.41,0.0513628]
[1749799069084,6.9202,144.43,144.41,0.0513628]
[1749799069683,6.9202,144.43,144.41,6.9722628]
[1749799071481,6.9202,144.43,144.41,0.0513628]
[1749799071675,6.9204,144.42,144.41,0.0513628]
[1749799072084,0.04829595,144.44,144.41,0.0513628]
[1749799072293,6.92,144.43,144.41,0.0513628]
[1749799072584,6.92,144.43,144.41,6.9721628]
[1749799072973,6.96799595,144.44,144.41,0.0513628]
[1749799073184,6.96799595,144.44,144.41,6.9720628]
[1749799073388,6.9203,144.43,144.41,0.0513628]
[1749799074191,6.9204,144.42,144.41,0.0513628]
[1749799074685,6.9203,144.43,144.41,0.0513628]
[1749799074882,0.04829595,144.44,144.41,0.0513628]
[1749799075281,6.9204,144.42,144.41,0.0513628]
[1749799077887,6.9221,144.39,144.37,37.92]
[1749799078186,5.02602025,144.41,144.34,37.92]
[1749799078484,40.1459,144.43,144.34,37.92]
[1749799078485,6.9231,144.37,144.34,44.8439]
[1749799078688,6.9231,144.37,144.34,37.92]
[1749799078877,6.97592462,144.37,144.34,37.92]
[1749799079080,6.97592462,144.37,144.36,6.9233]
[1749799079081,0.05282462,144.37,144.36,6.9233]
[1749799080383,0.05282462,144.37,144.35,6.9236]
[1749799080587,5.07884487,144.37,144.31,441.54602025]
[1749799081190,6.924,144.35,144.31,441.54602025]
[1749799081788,6.924,144.35,144.33,6.9246]
[1749799082295,6.9235,144.36,144.33,6.9246]
[1749799084387,6.9239,144.35,144.33,6.9246]
[1749799084585,0.05282462,144.37,144.33,6.9246]
[1749799085087,6.9238,144.35,144.33,6.9246]
[1749799085287,6.9238,144.35,144.32,6.925]
[1749799085588,6.9235,144.36,144.31,441.55667331]
[1749799085785,6.9235,144.36,144.33,6.9244]
[1749799086393,0.05282462,144.37,144.33,6.9244]
[1749799086394,6.9238,144.35,144.33,6.9244]
[1749799086781,6.97582462,144.37,144.34,6.924]
[1749799086991,0.05282462,144.37,144.31,441.55667331]
[1749799087185,0.05282462,144.37,144.33,5.03667331]
[1749799087391,0.05282462,144.37,144.35,6.9235]
[1749799089887,0.05282462,144.37,144.36,6.9233]
[1749799090691,0.05282462,144.37,144.35,6.9236]
[1749799091896,0.05282462,144.37,144.36,6.9233]
[1749799092299,2.2259,144.43,144.38,6.9219]
[1749799092597,2.2259,144.43,144.37,5.03667331]
[1749799092795,2.2259,144.43,144.35,37.8]
[1749799092997,5.03667331,144.42,144.35,42.83667331]
[1749799093196,0.04584443,144.4,144.37,0.04567295]
[1749799094195,6.96764443,144.4,144.37,6.96827295]
[1749799094994,6.96764443,144.4,144.38,6.9223]
[1749799095299,6.96764443,144.4,144.37,0.04567295]
[1749799095691,6.96764443,144.4,144.37,6.96817295]
[1749799095901,6.9219,144.39,144.37,6.96817295]
[1749799097204,6.96744443,144.4,144.37,6.96817295]
[1749799098397,6.96744443,144.4,144.38,6.9222]
[1749799099692,0.04584443,144.4,144.38,6.9222]
[1749799100695,6.96744443,144.4,144.37,6.96827295]
[1749799101001,0.04584443,144.4,144.37,0.04567295]
[1749799101300,6.9221,144.39,144.37,6.96817295]
[1749799102296,0.04584443,144.4,144.38,5.03223136]
[1749799102500,0.04584443,144.4,144.37,0.04567295]
[1749799102501,0.04584443,144.4,144.39,5.02974908]
[1749799102800,0.04584443,144.4,144.39,11.95164908]
[1749799103703,0.04584443,144.4,144.38,6.9221]
[1749799104603,0.04584443,144.4,144.39,6.9219]
[1749799106797,6.96724443,144.4,144.38,6.9222]
[1749799107400,0.04584443,144.4,144.37,0.04567295]
[1749799107609,5.07559351,144.4,144.37,0.04567295]
[1749799107803,5.88272079,144.39,144.37,0.04567295]
[1749799107997,10.91246987,144.38,144.31,490.95475928]
[1749799108199,10.91246987,144.38,144.3,42.82974908]
[1749799108200,5.02974908,144.38,144.3,42.82974908]
[1749799108400,5.88387091,144.37,144.3,42.82974908]
[1749799108603,42.82974908,144.38,144.32,6.9249]
[1749799108802,5.02974908,144.36,144.3,42.82974908]
[1749799109107,0.04685002,144.34,144.32,6.94745041]
[1749799110407,6.97125002,144.34,144.32,6.94745041]
[1749799111507,0.04685002,144.34,144.32,6.94745041]
[1749799111702,0.04685002,144.34,144.33,6.9248]
[1749799112509,0.04685002,144.34,144.32,6.94745041]
[1749799112708,0.04685002,144.34,144.32,0.02245041]
[1749799113408,0.04685002,144.34,144.33,6.9248]
[1749799114210,0.04685002,144.34,144.32,6.94745041]
[1749799115910,6.9247,144.33,144.32,0.02245041]
[1749799116211,5.86017979,144.33,144.27,5.02974908]
[1749799116508,6.42338648,144.37,144.32,5.02974908]
[1749799116710,11.07678648,144.44,144.36,5.02974908]
[1749799116908,5.85573061,144.43,144.37,37.8]
[1749799117113,5.08023177,144.41,144.34,37.8]
[1749799117311,5.85573061,144.4,144.34,37.8]
[1749799117513,6.9231,144.37,144.34,37.8]
[1749799117908,2.37630757,144.38,144.34,37.8]
[1749799118109,6.9238,144.35,144.32,6.9249]
[1749799118315,0.04655768,144.35,144.31,37.8]
[1749799118612,6.97035768,144.35,144.32,6.9251]
[1749799118813,0.04655768,144.35,144.31,37.8]
[1749799119314,6.97065768,144.35,144.32,6.925]
[1749799119816,6.9244,144.34,144.32,6.925]
[1749799120011,6.9244,144.34,144.31,44.7255]
[1749799120318,6.9244,144.34,144.31,37.8]
[1749799120614,6.9244,144.34,144.31,44.7254]
[1749799120911,6.9244,144.34,144.31,37.8]
[1749799121412,0.04655768,144.35,144.32,6.925]
[1749799121610,0.04655768,144.35,144.31,37.8]
[1749799121811,6.9245,144.34,144.31,44.7253]
[1749799122013,6.9245,144.34,144.31,37.8]
[1749799123215,6.9245,144.34,144.31,44.7255]
[1749799123414,6.9248,144.33,144.31,44.7255]
[1749799123612,0.04655768,144.35,144.31,44.7255]
[1749799124113,6.9246,144.34,144.31,44.7255]
[1749799125416,6.9246,144.34,144.32,6.9251]
[1749799130117,6.97055768,144.35,144.33,6.9247]
[1749799130511,0.04655768,144.35,144.31,37.8]
[1749799130711,6.9245,144.34,144.31,37.8]
[1749799131814,6.9245,144.34,144.32,6.925]
[1749799132819,6.97055768,144.35,144.32,6.925]
[1749799134406,6.97055768,144.35,144.33,6.9244]
[1749799134407,0.04655768,144.35,144.33,6.9244]
[1749799134607,0.04655768,144.35,144.32,5.02974908]
[1749799135018,6.9244,144.34,144.32,6.925]
[1749799135417,0.04655768,144.35,144.31,37.8]
[1749799135620,6.9247,144.34,144.31,44.7255]
[1749799135916,6.9247,144.34,144.31,37.8]
[1749799136121,6.9247,144.34,144.32,6.925]
[1749799136318,6.97055768,144.35,144.31,37.8]
[1749799136515,0.04655768,144.35,144.31,37.8]
[1749799136914,6.9243,144.34,144.32,6.925]
[1749799139222,6.9243,144.34,144.31,44.7254]
[1749799139416,5.02974908,144.34,144.24,398.7]
[1749799139614,0.04555094,144.31,144.26,37.68]
[1749799139814,0.04555094,144.31,144.26,42.70974908]
[1749799140213,0.04555094,144.31,144.28,6.9269]
[1749799140727,0.04555094,144.31,144.26,37.68]
[1749799141021,6.97145094,144.31,144.28,6.9269]
[1749799142118,0.04555094,144.31,144.27,5.02974908]
[1749799142722,49.14008047,144.38,144.3,5.03669399]
[1749799143015,8.5395173,144.37,144.34,5.03669399]
[1749799143222,6.9221,144.39,144.36,6.9233]
[1749799143415,5.84791733,144.38,144.36,6.9233]
[1749799143619,5.84791733,144.37,144.36,6.9233]
[1749799143924,0.04958551,144.38,144.36,6.9233]
[1749799144527,6.97198551,144.38,144.36,6.9233]
[1749799145127,6.97198551,144.38,144.35,0.04555094]
[1749799145128,0.04958551,144.38,144.35,0.04555094]
[1749799145316,5.84903814,144.37,144.35,0.04555094]
[1749799145513,6.9233,144.36,144.35,0.04555094]
[1749799145930,0.04958551,144.38,144.35,0.04555094]
[1749799146525,5.85071029,144.37,144.35,0.04555094]
[1749799146727,12.77391029,144.37,144.35,0.04555094]
[1749799146925,0.04958551,144.38,144.35,0.04555094]
[1749799147120,5.85075219,144.37,144.35,0.04555094]
[1749799147322,6.9233,144.36,144.35,0.04555094]
[1749799147517,12.77673981,144.36,144.35,0.04555094]
[1749799147717,5.85343981,144.36,144.35,0.04555094]
[1749799148120,0.04958551,144.38,144.35,0.04555094]
[1749799148321,5.85335109,144.37,144.35,0.04555094]
[1749799148522,5.85622083,144.36,144.35,0.04555094]
[1749799149027,12.77952083,144.36,144.35,0.04555094]
[1749799151015,13.5828475,144.36,144.3,44.606]
[1749799151228,5.03669399,144.34,144.27,45.06319399]
[1749799151420,6.9262,144.3,144.27,42.71669399]
[1749799151729,5.03669399,144.34,144.28,6.9269]
[1749799151935,0.0478712,144.32,144.27,37.68]
[1749799152117,5.86454349,144.31,144.28,6.927]
[1749799152317,5.08456519,144.32,144.28,6.927]
[1749799152524,5.86650628,144.31,144.28,6.927]
[1749799152725,6.9258,144.31,144.28,6.927]
[1749799152925,6.9258,144.31,144.27,37.68]
[1749799152926,5.08456519,144.32,144.27,37.68]
[1749799153129,5.86649647,144.31,144.27,37.68]
[1749799153426,12.01006519,144.32,144.27,37.68]
[1749799153626,5.86532489,144.31,144.29,6.9263]
[1749799153829,12.01006519,144.32,144.27,37.68]
[1749799154025,5.86528583,144.31,144.29,6.9264]
[1749799154219,5.08456519,144.32,144.27,37.68]
[1749799154426,5.84494045,144.31,144.27,37.68]
[1749799154624,0.0478712,144.32,144.27,37.68]
[1749799154825,5.84472744,144.31,144.27,37.68]
[1749799155127,0.0478712,144.32,144.28,6.9267]
[1749799155431,12.77020233,144.31,144.27,37.68]
[1749799155626,6.926,144.31,144.27,37.68]
[1749799155827,6.926,144.31,144.28,6.9268]
[1749799156622,6.9733712,144.32,144.29,6.9267]
[1749799157331,6.9733712,144.32,144.3,6.9262]
[1749799158032,6.9733712,144.32,144.29,6.9264]
[1749799158624,6.9257,144.31,144.29,6.9264]
[1749799162823,6.9732712,144.32,144.29,6.9264]
[1749799163029,0.0478712,144.32,144.3,6.9261]
[1749799163931,0.0478712,144.32,144.31,6.9257]
[1749799164525,0.0478712,144.32,144.31,44.5057]
[1749799166736,8.58454185,144.41,144.35,6.9234]
[1749799166926,5.87984139,144.38,144.35,6.9234]
[1749799167131,5.87984139,144.37,144.35,6.9234]
[1749799167330,5.87984139,144.36,144.35,6.9234]
[1749799167631,6.42338648,144.4,144.33,5.03899323]
[1749799167831,0.04770185,144.37,144.34,0.0478712]
[1749799168233,0.04770185,144.37,144.35,6.9236]
[1749799169837,0.04770185,144.37,144.34,6.9719712]
[1749799170039,0.04770185,144.37,144.34,0.0478712]
[1749799170836,6.9237,144.36,144.34,0.0478712]
[1749799173640,6.9238,144.35,144.34,0.0478712]
[1749799174140,6.9235,144.36,144.34,0.0478712]
[1749799175840,6.9238,144.35,144.34,0.0478712]
[1749799177043,6.9235,144.36,144.34,0.0478712]
[1749799177237,0.04770185,144.37,144.34,0.0478712]
[1749799177544,6.9238,144.35,144.34,0.0478712]
[1749799177834,0.04770185,144.37,144.34,0.0478712]
[1749799178541,6.9235,144.36,144.34,0.0478712]
[1749799178840,0.04770185,144.37,144.34,0.0478712]
[1749799179039,6.9238,144.35,144.34,0.0478712]
[1749799183046,6.9235,144.36,144.34,0.0478712]
[1749799183349,0.04770185,144.37,144.34,0.0478712]
[1749799184051,0.04770185,144.37,144.35,37.46]
[1749799184548,6.97080185,144.37,144.35,37.46]
[1749799185042,6.97080185,144.37,144.35,44.3835]
[1749799185449,0.04770185,144.37,144.36,6.9233]
[1749799185742,0.04770185,144.37,144.35,37.46]
[1749799185947,6.97070185,144.37,144.35,37.46]
[1749799186348,0.04770185,144.37,144.35,37.46]
[1749799186645,0.04770185,144.37,144.35,42.49611904]
[1749799186852,0.02298561,144.37,144.36,6.9233]
[1749799187553,9.54031904,144.43,144.39,6.9215]
[1749799187554,5.8871801,144.41,144.39,6.9215]
[1749799187853,6.9208,144.42,144.39,6.9215]
[1749799188150,9.54031904,144.43,144.39,37.46]
[1749799188151,2.2722,144.43,144.39,37.46]
[1749799188351,7.34821904,144.45,144.39,37.46]
[1749799188543,0.04494788,144.42,144.4,0.05102881]
[1749799188741,0.04494788,144.42,144.4,6.97232881]
[1749799188948,6.96564788,144.42,144.4,0.05102881]
[1749799189147,0.04494788,144.42,144.4,0.05102881]
[1749799189455,0.04494788,144.42,144.4,6.97222881]
[1749799189655,0.04494788,144.42,144.4,0.05102881]
[1749799189850,5.03611904,144.41,144.36,37.46]
[1749799190052,5.03611904,144.37,144.33,37.46]
[1749799190251,5.03611904,144.37,144.3,37.46]
[1749799190448,6.924,144.35,144.32,6.9249]
[1749799190855,0.05179734,144.35,144.32,6.96944424]
[1749799191556,6.9245,144.34,144.32,0.04454424]
[1749799192951,6.97579734,144.35,144.32,0.04454424]
[1749799193148,6.97579734,144.35,144.32,6.96974424]
[1749799193349,0.05179734,144.35,144.32,6.96974424]
[1749799193645,0.05179734,144.35,144.32,0.04454424]
[1749799194155,0.05179734,144.35,144.32,6.96974424]
[1749799194156,6.97579734,144.35,144.32,6.96974424]
[1749799194349,9.734e-05,144.35,144.34,5.0324817]
[1749799194656,53.57746818,144.46,144.34,47.5249634]
[1749799194852,5.8854872,144.45,144.38,5.0324817]
[1749799195054,10.9179689,144.44,144.38,37.46]
[1749799195255,5.0324817,144.42,144.38,37.46]
[1749799195454,5.93787444,144.41,144.39,0.0510086]
[1749799195645,0.05238724,144.41,144.39,0.0510086]
[1749799195845,6.9218,144.4,144.39,0.0510086]
[1749799196453,0.05238724,144.41,144.39,0.0510086]
[1749799196851,0.05238724,144.41,144.39,6.9728086]
[1749799197353,0.05238724,144.41,144.39,0.0510086]
[1749799198054,6.97358724,144.41,144.39,0.0510086]
[1749799199060,6.9214,144.4,144.39,0.0510086]
[1749799204660,6.97348724,144.41,144.39,6.9727086]
[1749799205257,0.05238724,144.41,144.4,6.9214]
[1749799205661,0.05238724,144.41,144.39,0.0510086]
[1749799206461,6.9214,144.4,144.39,0.0510086]
[1749799206655,0.05238724,144.41,144.39,0.0510086]
[1749799207258,0.05238724,144.41,144.4,6.9214]
[1749799210470,0.00135843,144.41,144.4,11.9547686]
[1749799215872,0.00135843,144.41,144.4,6.9214]
[1749799216070,0.00135843,144.41,144.39,6.9727086]
[1749799216270,0.00135843,144.41,144.39,0.0510086]
[1749799216577,0.00135843,144.41,144.4,6.9214]
[1749799217771,0.00135843,144.41,144.39,6.9726086]
[1749799217967,0.00135843,144.41,144.39,44.3526086]
[1749799219074,0.00135843,144.41,144.4,6.9214]
[1749799220370,0.00135843,144.41,144.39,37.4310086]
[1749799220575,6.9214,144.4,144.39,37.4310086]
[1749799220777,6.9214,144.4,144.39,0.0510086]
[1749799222670,12.80669508,144.4,144.39,0.0510086]
[1749799222967,6.9214,144.4,144.39,0.0510086]
[1749799223678,12.80757931,144.4,144.39,0.0510086]
[1749799223880,15.05527931,144.4,144.39,0.0510086]
[1749799224981,2.2477,144.4,144.39,0.0510086]
[1749799225381,9.1691,144.4,144.39,0.0510086]
[1749799226180,15.04161126,144.4,144.39,0.0510086]
[1749799226580,9.1691,144.4,144.39,0.0510086]
[1749799227181,2.2477,144.4,144.39,0.0510086]
[1749799227882,9.1691,144.4,144.39,0.0510086]
[1749799228274,2.2477,144.4,144.39,0.0510086]
[1749799228475,6.92275843,144.41,144.39,0.0510086]
[1749799228680,0.00135843,144.41,144.39,0.0510086]
[1749799229181,0.00135843,144.41,144.39,6.9728086]
[1749799230582,6.92255843,144.41,144.39,6.9728086]
[1749799230978,0.00135843,144.41,144.4,6.9215]
[1749799235387,0.00135843,144.41,144.39,0.0510086]
[1749799236097,0.00135843,144.41,144.4,6.9215]
[1749799238591,0.00135843,144.41,144.4,44.3215]
[1749799239692,44.17,144.49,144.42,5.0287343]
[1749799239895,12.80746821,144.48,144.42,5.0287343]
[1749799240106,5.88966821,144.47,144.46,6.9186]
[1749799240795,0.0449741,144.48,144.47,6.9181]
[1749799241397,5.93198338,144.48,144.47,6.9181]
[1749799241601,0.0449741,144.48,144.47,6.9181]
[1749799243189,2.1933,144.54,144.52,6.9155]
[1749799243400,11.47777732,144.58,144.51,37.34]
[1749799243607,6.9141,144.56,144.51,37.34]
[1749799243894,6.9141,144.56,144.53,6.9151]
[1749799244094,6.9141,144.56,144.51,37.34]
[1749799244303,0.05205637,144.55,144.52,6.96282635]
[1749799244688,0.05205637,144.55,144.52,0.04732635]
[1749799244887,5.02291293,144.54,144.52,0.04732635]
[1749799245200,6.9152,144.53,144.52,0.04732635]
[1749799245395,2.3674,144.54,144.48,37.34]
[1749799245703,6.9159,144.52,144.48,37.34]
[1749799245900,6.9159,144.52,144.49,6.9171]
[1749799246095,6.9159,144.52,144.48,37.34]
[1749799246292,9.2522,144.53,144.48,37.34]
[1749799246495,0.04645985,144.52,144.5,6.9164]
[1749799246892,6.96255985,144.52,144.49,6.9608481]
[1749799247092,0.04645985,144.52,144.49,0.0438481]
[1749799247493,0.04645985,144.52,144.5,6.9164]
[1749799247692,0.04645985,144.52,144.49,0.0438481]
[1749799249100,0.04645985,144.52,144.5,6.9163]
[1749799249592,0.04645985,144.52,144.49,0.0438481]
[1749799249793,0.04645985,144.52,144.5,6.9167]
[1749799250004,0.04645985,144.52,144.49,0.0438481]
[1749799250503,0.04645985,144.52,144.5,6.9164]
[1749799250900,0.04645985,144.52,144.49,6.9608481]
[1749799251101,0.04645985,144.52,144.49,0.0438481]
[1749799251403,0.04645985,144.52,144.5,6.9162]
[1749799252302,0.04645985,144.52,144.51,6.9162]
[1749799254895,0.04645985,144.52,144.5,6.9165]